Cogmind - Beta 16 --- EXPLORER MODE // 2025.12.19 @ 15:41:00 Player: K.K.Y. Result: Destroyed by XM-SDX(R) with Subdweller Laser Performance ------------- Evolutions (0) 0 Regions Visited (3) 600 Robots Destroyed (24) 120 Value Destroyed (569) 569 Prototype IDs (8) 160 Alien Tech Used (0) 0 Bonus (0) 0 TOTAL SCORE: 1449 Bonus ------- None Cogmind --------- Core Integrity 0/250 Matter 272/300 Energy 32/100 System Corruption 0% Temperature Cool (6) Movement Core (300) Ox5 Location -10/Subcaves Parts ------- > --- POWER (1) -------- (None) > --- PROPULSION (2) --- (None) > --- UTILITY (3) ------ Medium Storage Unit Structural Scanner > --- WEAPON (2) ------- Slug Cannon > --- INVENTORY (10) --- Spiked Treads Large Storage Unit Huge Storage Unit Machine Analyzer Ripper Peak State ------------ > --- POWER ------------ Ion Engine > --- PROPULSION ------- Light Treads Light Treads > --- UTILITY ---------- Medium Storage Unit Structural Scanner Experimental Sensor Array > --- WEAPON ----------- Medium Laser Medium Laser > --- INVENTORY -------- Large Storage Unit Huge Storage Unit Machine Analyzer Light Armor Plating Slug Cannon Mining Laser [Rating: 17] Favorites ----------- Power Ion Engine Engine Ion Engine Propulsion Light Treads Treads Light Treads Wheel Wheel Utility Structural Scanner Device Structural Scanner Storage Medium Storage Unit Protection Light Armor Plating Weapon Medium Laser Energy Gun Medium Laser Ballistic Gun Assault Rifle Ballistic Cannon Slug Cannon Special Weapon Mining Laser Build | -11 -10 -10 -10 ------- Run | Yrd Mat Min Sub Slots Evolved 1 | . 1 . . Power . | . . . . Propulsion . | . . . . Utility 1 | . 1 . . Weapon . | . . . . Parts Attached 20 | 7 6 3 4 Power 2 | 1 1 . . Engine 2 | 1 1 . . Core . | . . . . Reactor . | . . . . Propulsion 6 | 2 2 2 . Treads 5 | 2 1 2 . Leg . | . . . . Wheel 1 | . 1 . . Hover . | . . . . Flight . | . . . . Utility 5 | 1 2 1 1 Device 3 | . 2 1 . Storage 1 | . . . 1 Processor . | . . . . Hackware . | . . . . Protection 1 | 1 . . . Artifact . | . . . . Weapon 7 | 3 1 . 3 Energy Gun 4 | 2 1 . 1 Energy Cannon . | . . . . Ballistic Gun 1 | 1 . . . Ballistic Cannon 1 | . . . 1 Launcher . | . . . . Special Weapon 1 | . . . 1 Impact Weapon . | . . . . Slashing Weapon . | . . . . Piercing Weapon . | . . . . Special Melee Weapon . | . . . . Unidentified Prototypes 1 | . . 1 . Parts Lost 7 | . . . 7 Power 1 | . . . 1 Propulsion 2 | . . . 2 Utility 1 | . . . 1 Weapon 3 | . . . 3 Highest Loss Streak 7 | . . . 7 To Critical Strikes . | . . . . Average Backups 5 | . 4 5 6 Power . | . . . . Propulsion . | . . . . Utility 2 | . 2 3 3 Weapon 1 | . 1 2 2 Tool/Special . | . . . . Unused Backups 5 | . . . 5 Power . | . . . . Propulsion 1 | . . . 1 Utility 3 | . . . 3 Weapon 1 | . . . 1 Tool/Special . | . . . . Average Slot Usage (%) 87 | . 79 89 96 Engine 11 | . 12 12 10 Treads 20 | . 18 19 24 Device 17 | . 10 20 24 Storage 2 | . . . 9 Protection 9 | . 12 12 2 Energy Gun 22 | . 25 25 16 Special Weapon 2 | . . . 7 Peak Build Rating 17 | 6 7 16 17 Average Rating 10 | 5 6 12 15 On Entrance 7 | . 6 6 16 Avg Prop Armor Cover (%) 12 | . 12 . . Naked Turns . | . . . . Heaviest Build 21 | 12 13 14 21 Greatest Support 40 | 40 40 40 40 Greatest Overweight (x) 3 | 3 3 . . Average Overweight (x) . | . . . . Largest Inventory Capacity 10 | 5 5 5 10 Average Capacity 6 | 5 5 5 8 Most Carried 8 | 2 5 5 8 Average Carried 5 | 1 4 5 6 Final Capacity 10 | 5 5 5 10 Final Carried 5 | 2 5 5 5 Class Distribution -------------------- 100% | Hacker-Mutant Dominant Class ---------------- Hacker-Mutant | -10/Materials Hacker-Mutant | -10/Mines Hacker-Mutant | -10/Subcaves Resources | -11 -10 -10 -10 ----------- Run | Yrd Mat Min Sub Matter Collected 420 | 270 80 . 70 Remotely . | . . . . Salvage Created 767 | 71 462 39 195 Parts 42 | 4 24 5 9 Haulers Intercepted 2 | . 2 . . Recyclers Shooed 1 | . 1 . . Parts Field Recycled . | . . . . Retrieved Matter . | . . . . Parts Self-Destructed . | . . . . Prevented . | . . . . Parts Restored . | . . . . Kills | -11 -10 -10 -10 ------- Run | Yrd Mat Min Sub Combat Hostiles Destroyed 16 | . 9 2 5 Guns 14 | . 8 2 4 Cannons 1 | . . . 1 Classes Destroyed 9 | 2 6 . 1 Worker 1 | . 1 . . Builder 1 | . 1 . . Tunneler 1 | 1 . . . Hauler 2 | . 2 . . Recycler 1 | 1 . . . Watcher 2 | . 2 . . Swarmer 4 | . 2 2 . Grunt 7 | . 7 . . Subdweller 5 | . . . 5 Best Kill Streak 4 | 1 4 2 2 Combat Bots Only 2 | . 2 2 2 Max Kills in Single Turn 1 | 1 1 1 1 Gunslinging . | . . . . Exploded . | . . . . Melee . | . . . . Uniques/NPCs Destroyed . | . . . . Combat | -11 -10 -10 -10 -------- Run | Yrd Mat Min Sub Hostile Shots Fired 137 | . 37 9 91 Missed 38 | . 11 4 23 Hits 99 | . 26 5 68 Projectile 99 | . 26 5 68 Critical Strikes 2 | . 1 . 1 Damage Taken 1111 | . 183 23 905 Core 251 | . 17 . 234 Absorbed by Shields . | . . . . Ignored by Resistances 672 | . 119 15 538 Core Remaining (%) 100 | 100 . . . Volleys Fired 105 | 4 38 4 59 Largest 2 | 2 2 2 2 Hottest 150 | 100 100 100 150 Shots Fired 198 | 8 75 8 107 Gun 166 | 8 75 8 75 Cannon 3 | . . . 3 Launcher . | . . . . Special 29 | . . . 29 Kinetic 3 | . . . 3 Thermal 195 | 8 75 8 104 Explosive . | . . . . Electromagnetic . | . . . . Robot Hit Streak 27 | 7 27 15 27 Robot Miss Streak 1 | . 1 1 1 Penetration Max . | . . . . Secondary Targets 1 | . 1 . . Max Gunslinging Chain 1 | . 1 . . Shots Hit Robots 129 | 7 63 5 54 Core Hits 45 | 3 26 2 14 Critical Kills . | . . . . Critical Parts Destroyed . | . . . . Critical Strikes 10 | . 7 . 3 Burn 10 | . 7 . 3 Melee Attacks . | . . . . Impact . | . . . . Slashing . | . . . . Piercing . | . . . . Sneak Attacks . | . . . . Combat Hostiles . | . . . . Follow-up Attacks . | . . . . Damage Inflicted 1688 | 88 801 63 736 Guns 1513 | 88 801 63 561 Cannons 79 | . . . 79 Explosions . | . . . . Melee . | . . . . Ramming . | . . . . Kinetic 79 | . . . 79 Thermal 1609 | 88 801 63 657 Explosive . | . . . . Electromagnetic . | . . . . Impact . | . . . . Slashing . | . . . . Piercing . | . . . . Highest Corruption . | . . . . Average Corruption . | . . . . Corruption Purged . | . . . . Corruption Blocked . | . . . . Overload Shots . | . . . . Overflow Damage . | . . . . Projectiles . | . . . . Explosions . | . . . . Melee . | . . . . Knockbacks . | . . . . Impact . | . . . . Kinetic . | . . . . Secondary . | . . . . Self-Inflicted Damage . | . . . . Shots . | . . . . Rammed . | . . . . Targets Rammed . | . . . . Kicked . | . . . . Crushed . | . . . . Highest Temperature 487 | 144 487 192 2 Average Temperature 131 | 63 148 99 2 Received Heat Transfer 342 | . 162 . 180 Effects 11 | . 11 . . Shutdowns 1 | . 1 . . Energy Bleed 2 | . 2 . . Interference 3 | . 3 . . Short Circuit 1 | . 1 . . Damage (minor) 1 | . 1 . . Damage (major) 3 | . 3 . . Siege Activations . | . . . . Martial Activations . | . . . . Shielding Activations . | . . . . Robots Disrupted . | . . . . Combat Hostiles . | . . . . Robots Corrupted . | . . . . Combat Hostiles . | . . . . Parts Fried . | . . . . Impact Corruptions . | . . . . Robots Melted 1 | . 1 . . Combat Hostiles 1 | . 1 . . Parts Melted 19 | . 14 . 5 Heat Transferred 5417 | 259 2886 185 2087 Parts Sabotaged . | . . . . Parts Stolen . | . . . . Parts Stripped . | . . . . Power Chain Reactions . | . . . . Alert | -11 -10 -10 -10 ------- Run | Yrd Mat Min Sub Maximum Alert Level . | . . . . Low Security (%) 100 | 100 100 100 . Level 1 . | . . . . Level 2 . | . . . . Level 3 . | . . . . Level 4 . | . . . . Level 5 . | . . . . High Security . | . . . . Max Security . | . . . . Peak Influence 52 | 5 52 39 . Initial 2 | . 2 . . Average 4 | 1 5 1 . Influence Increases 348 | 10 284 54 . Destroy 0b10 Robot/C 220 | . 180 40 . Destroy 0b10 Robot/NC 40 | 10 30 . . Destroy Leader 48 | . 38 10 . Successful Hack 35 | . 35 . . Disable Machine 4 | . . 4 . Destroy Structure 1 | . 1 . . Influence Decreases 348 | 5 289 54 . Entered New Map 3 | . 3 . . Time Decay 345 | 5 286 54 . Squads Dispatched . | . . . . Investigation . | . . . . Extermination . | . . . . Reinforcement . | . . . . Assault . | . . . . Garrison . | . . . . Intercept . | . . . . Searches Triggered . | . . . . Construction Impeded . | . . . . Haulers Reinforced . | . . . . Active Scanning Responses . | . . . . Cargo Convoy Interrupts . | . . . . Stealth | -11 -10 -10 -10 --------- Run | Yrd Mat Min Sub Distress Signals 1 | . 1 . . Communications Jammed . | . . . . Distress Signals . | . . . . Times Spotted 22 | . 12 2 8 Peak Tracking Total 3 | . 2 2 3 Tactical Retreats . | . . . . Traps | -11 -10 -10 -10 ------- Run | Yrd Mat Min Sub Traps Triggered 2 | . 2 . . Indirectly . | . . . . Trap Hack Attempts . | . . . . Triggered . | . . . . Disarmed . | . . . . Reprogrammed . | . . . . Reused . | . . . . Traps Extracted . | . . . . Installed . | . . . . Triggered . | . . . . Machines | -11 -10 -10 -10 ---------- Run | Yrd Mat Min Sub Machines Disabled 1 | . . 1 . Max in Single Turn 1 | . . 1 . Machines Repaired . | . . . . Machines Dismantled . | . . . . Machines Sabotaged . | . . . . Overloaded Fab Kills . | . . . . Hacking | -11 -10 -10 -10 --------- Run | Yrd Mat Min Sub Machines Accessed 9 | . 9 . . Terminals 8 | . 8 . . Fabricators . | . . . . Repair Stations . | . . . . Recycling Units 1 | . 1 . . Scanalyzers . | . . . . Garrison Access . | . . . . Total Hacks 43 | . 43 . . Successful 35 | . 35 . . Failed 8 | . 8 . . Catastrophic . | . . . . Database Lockouts . | . . . . Manual 41 | . 41 . . Terminals 40 | . 40 . . Fabricators . | . . . . Repair Stations . | . . . . Recycling Units 3 | . 3 . . Scanalyzers . | . . . . Garrison Access . | . . . . Terminal Hacks 24 | . 24 . . Prototype ID Bank 24 | . 24 . . Fabricator Hacks . | . . . . Repair Station Hacks . | . . . . Recycling Unit Hacks 2 | . 2 . . Retrieve Components 2 | . 2 . . Scanalyzer . | . . . . Garrison Access Hacks . | . . . . Unauthorized Hacks 9 | . 9 . . Terminals 8 | . 8 . . Botnet 8 | . 8 . . Fabricators . | . . . . Repair Stations . | . . . . Recycling Units 1 | . 1 . . Reject 1 | . 1 . . Scanalyzers . | . . . . Garrison Access . | . . . . Data Cores Recovered . | . . . . Used . | . . . . Hacking Detections 9 | . 9 . . Full Trace Events . | . . . . Feedback Events . | . . . . Feedback Blocked . | . . . . Robot Schematics Acquired . | . . . . Robots Built . | . . . . Authchips . | . . . . Time . | . . . . Total Robot Build Rating . | . . . . Part Schematics Acquired . | . . . . Parts Built . | . . . . Authchips . | . . . . Time . | . . . . Total Part Build Rating . | . . . . Part Studies Acquired . | . . . . Parts Repaired . | . . . . Time . | . . . . Parts Recycled . | . . . . Recycled Matter . | . . . . Retrieved Matter . | . . . . Retrieved Components . | . . . . Parts Scanalyzed . | . . . . Part Schematics Acquired . | . . . . Parts Damaged . | . . . . Bothacking | -11 -10 -10 -10 ------------ Run | Yrd Mat Min Sub Used RIF Installer . | . . . . Robots Hacked . | . . . . Non-combat . | . . . . Combat . | . . . . Robot Hacks Applied . | . . . . Relay Couplers Released . | . . . . Fabnet Peak Effective % . | . . . . Robots Rewired . | . . . . Allies Hacked . | . . . . Hacks Repelled . | . . . . Allies | -11 -10 -10 -10 -------- Run | Yrd Mat Min Sub Total Allies . | . . . . Largest Group . | . . . . Highest-Rated Group . | . . . . Highest-Rated Ally . | . . . . Total Orders . | . . . . Ally Attacks . | . . . . Total Damage . | . . . . Kills . | . . . . Allies Corrupted . | . . . . Allies Melted . | . . . . Intel | -11 -10 -10 -10 ------- Run | Yrd Mat Min Sub Active Infowar (turns) 2935 | . 1167 801 967 Sensors 1392 | . . 493 899 Structural 2935 | . 1167 801 967 Robot Analysis Total . | . . . . Derelict Logs Recovered 1 | . . . 1 Drone Launches . | . . . . Drone Recoveries . | . . . . Exploration | -11 -10 -10 -10 ------------- Run | Yrd Mat Min Sub Turns Passed 3187 | 96 1323 801 967 Spaces Moved 1676 | 47 718 481 430 Core 23 | 13 10 . . Treads 1653 | 34 708 481 430 Legs . | . . . . Wheels . | . . . . Hover . | . . . . Flight . | . . . . Fastest Speed 50 | 50 160 160 160 Average Speed 159 | 144 160 160 160 Slowest Speed 200 | 200 200 160 160 Overloaded Moves . | . . . . Propulsion Burnouts . | . . . . Robots Hopped . | . . . . Potential Cave-ins . | . . . . Cave-ins Triggered . | . . . . Exploration Rate (%) 55 | 4 95 98 24 Regions Visited 3 Branch Regions 2 Pre-discovered Areas 2 | . . 1 1 Known Exits Taken 3 | 1 1 1 . Unknown Exits Taken . | . . . . Scrap Searched 3 | . . . 3 Spaces Dug . | . . . . Terrain Destroyed . | . . . . Melee . | . . . . Projectile . | . . . . AOE . | . . . . Terrain Rammed . | . . . . Walls Destroyed . | . . . . Machines Disabled . | . . . . Actions | -11 -10 -10 -10 --------- Run | Yrd Mat Min Sub Total 1930 | 68 814 505 543 Wait 96 | . 40 17 39 Move 1673 | 46 717 480 430 Hop . | . . . . Pick Up 19 | 9 5 . 5 Fast Attach 6 | . 4 2 . Attach 10 | 7 1 . 2 Detach 1 | 1 . . . Swap 9 | . 3 1 5 Drop 11 | 1 6 1 3 Fire 105 | 4 38 4 59 Melee . | . . . . Ram . | . . . . Kick . | . . . . Crush . | . . . . Escape Stasis . | . . . . Rewire . | . . . . Trap . | . . . . Miscellaneous . | . . . . Route ------- -11/Scrapyard -10/Materials (discovered 4 exits: *Mat x3 / *Min) -10/Mines (discovered 3 exits: *Mat x2 / *Sub) -10/Subcaves (discovered 1 exit: *Mat) History --------- Turn | Location | Event 7 | -11/Scrapyard | Identified exit to Materials 7 | -11/Scrapyard | Discovered exit to Materials (range 15) 97 | -11/Scrapyard | Entered Materials 97 | -10/Materials | Evolved 1 slot: Utility x1 307 | -10/Materials | Identified exit to Materials 307 | -10/Materials | Discovered exit to Materials (range 3) 318 | -10/Materials | Build established: Hacker-Mutant 575 | -10/Materials | Discovered exit to Materials (range 5) 597 | -10/Materials | Derelicts attacked the area 845 | -10/Materials | Discovered exit to Materials (range 5) 952 | -10/Materials | Identified exit to Mines 952 | -10/Materials | Discovered exit to Mines (range 15) 1420 | -10/Materials | Entered Mines 1579 | -10/Mines | Discovered exit to Materials (range 15) 1582 | -10/Mines | Learned location of Storage (-8) 1725 | -10/Mines | Found a damaged Exp. Sensor Array with a note attached 1728 | -10/Mines | Found Prototype Device 1728 | -10/Mines | Identified Exp. Sensor Array 1852 | -10/Mines | Discovered exit to Materials (range 11) 1924 | -10/Mines | Identified exit to Subcaves 1924 | -10/Mines | Discovered exit to Subcaves (range 6) 2221 | -10/Mines | Entered Subcaves 2222 | -10/Subcaves | Approached by a straggling Scientist 2392 | -10/Subcaves | Learned location of Zion (-6) 2392 | -10/Subcaves | Met a Zionite searching for "candidates" 2519 | -10/Subcaves | Shifting Twisted Machinery released Sub. Monowheel 2521 | -10/Subcaves | Shifting Twisted Machinery released Ripper 2594 | -10/Subcaves | Identified exit to Materials 2594 | -10/Subcaves | Discovered exit to Materials (range 4) 3164 | -10/Subcaves | Core integrity fell below 50% 3184 | -10/Subcaves | Core integrity fell below 20% 3188 | -10/Subcaves | Destroyed by XM-SDX(R) with Subdweller Laser Last Messages --------------- 02534_ Dropped Lgt. Armor Plating. 02545_ Acquired Ripper. 02594_ EXIT=FOUND: MATERIALS 02615_ 3M-VHC(u) builds Twisted Machinery. 02753_ 1W-IQO(u) builds Twisted Machinery. 02822_ Subatomizers dissect the Wheel. 02835_ Acquired 10 matter. 02836_ Subatomizers dissect the Wheel. 03097_ Ion Engine destroyed. 03100_ AF-V7T(R) destroyed. 03120_ Exp. Sensor Array destroyed. 03143_ Mining Laser destroyed. 03145_ Lgt. Treads destroyed. 03151_ XM-SDX(R) affixes Scrap Shield Fragment to Scrap Shield. 03159_ Lgt. Treads destroyed. 03161_ Med. Laser destroyed. 03170_ XM-SDX(R) affixes Scrap Shield Fragment to Scrap Shield. 03175_ Med. Laser destroyed. Map ----- +----------------------------------------------------+ | =" # ##?????? | | # # # ### # ^### ## ##?????? | | ## ############### ## ### ##?????? | | # ############## #### ### ##?????? | | ### ##???????### #### ###?????? | | #### #?????#### #### ### ###?????? | | ?### ????? # ### ######## ##??????? | | ??## ???? ####### ^##??????? | | ??### ##### ##??????? | | ?? ## # ## # ## ###??????? | | ????########### ### ## ###??????? | | ????######?##### #### #####???????? | | ?????????????##### ##### #####???????? | | ??????????????##### ###?## ####???????? | | ????????????????### ####?### ## ##???????? | | ????????????????? ###???### # ###???????? | | ???????????????? ##????##" ## ###???????? | | ????????????????? ???????##" ### ##????????? | | ????????????????? ????????### ### ##????????? | | ????????????????????????????### ### ###????????? | | ?????????????????????????????## ## ####????????? | | ?????????????????????????????## ######?????????? | | ?????????????????????????????### ##??####???????? | | ???????????????????????######### ########???????? | | ?????????????????## ??########## ### ##???????? | | ?????????????????## "" ##@ R### ###???????? | | ?????????????????# """ R R" ##????????? | | ?????????????????? """" % ###???????? | | ???????????????? """ ####### ##???????? | | ????????????????#######" ####### %##???????? | | ????????????????########" ##????# ###???????? | | ?????????????????????### ##?????? ####???????? | | ??????????????????????# ###?????? ###????????? | | ?????????????????????? ###?????? ###?????????? | | ????????????????????# ##????????## ###?????????? | | ????????????????????######????????#####??????????? | | ????????????????????#####??????????####??????????? | | ?????????????????????????????????????????????????? | | ?????????????????????????????????????????????????? | | ?????????????????????????????????????????????????? | | ?????????????????????????????????????????????????? | | ?????????????????????????????????????????????????? | | ?????????????????????????????????????????????????? | | ?????????????????????????????????????????????????? | | ?????????????????????????????????????????????????? | | ?????????????????????????????????????????????????? | | ?????????????????????????????????????????????????? | | ?????????????????????????????????????????????????? | | ?????????????????????????????????????????????????? | | ?????????????????????????????????????????????????? | +----------------------------------------------------+ Best States ------------- Heat Dissipation 25 Energy Generation 10 Energy Capacity 250 Matter Stores 300 Matter Capacity 300 Sight Range 16 Robot Scan Range 20 Terrain Scan Density 10 Armor Coverage 150 Resistance: KI 35 Resistance: TH 35 Resistance: EX 35 Resistance: EM 35 Resistance: I 35 Resistance: S 35 Resistance: P 35 Evasion (%) 40 Recoil Reduction 2 Offensive Hacking 20 Item Schematics ----------------- None Robot Schematics ------------------ None Fabricated ------------ Nothing Repaired ---------- Nothing Studied --------- None Alien Tech Used ----------------- None Achievements -------------- None Challenges ------------ None Game ------ Seed NuclearPoweredCasing Manual? 0 Play Time 00:17:23 Cumulative 215.1 hours Start 2025.12.19 @ 15:27:43 End 2025.12.19 @ 15:41:00 Sessions 1 Manual Loads 0 Difficulty Explorer Special Mode None Game No. 326 Rogue 0 Adventurer 0 Explorer 326 Win Type - Total 0 Types 0/0/0/0/0/0/0/0/0/0 Lore% 71 Gallery% 68 Achievement% 53 Wizard Run 0 Options --------- Layout 1 ASCII 0 Keyboard 0 Movement Mouse Keybinds 0 Fullscreen 1 Font 24/Smallcaps Map View 50x35 Zoom Use 0% Tactical HUD 1 Map Filters NONE Filters NONE Steam 1 RUN: 6621986f-e130-434b-a894-3276a1de9f65